[Event "*** SCC Grand Prix: Titled Tuesday Blitz"]
[Site "Chess.com"]
[Date "2020.09.08"]
[Round "10"]
[White "el-roedor"]
[Black "Mikheev1976"]
[Result "0-1"]
[WhiteElo "2539"]
[BlackElo "2424"]
[TimeControl "180+1"]
[EndTime "11:57:52 PDT"]
[Termination "Mikheev1976 won by resignation"]

1. d4 {[%clk 0:03:00.9]} 1... Nf6 {[%clk 0:02:59.3]} 2. c4 {[%clk 0:03:01]} 2...
c6 {[%clk 0:02:59.8]} 3. Nf3 {[%clk 0:02:59.1]} 3... d5 {[%clk 0:03:00.4]} 4. e3
{[%clk 0:02:57.3]} 4... e6 {[%clk 0:02:59.6]} 5. Nbd2 {[%clk 0:02:55.6]} 5...
Nbd7 {[%clk 0:02:59.6]} 6. Bd3 {[%clk 0:02:55.7]} 6... Bd6 {[%clk 0:02:58.3]} 7.
e4 {[%clk 0:02:55.4]} 7... dxe4 {[%clk 0:02:56.9]} 8. Nxe4 {[%clk 0:02:56.3]}
8... Nxe4 {[%clk 0:02:56.7]} 9. Bxe4 {[%clk 0:02:56.7]} 9... O-O {[%clk
0:02:50.5]} 10. O-O {[%clk 0:02:56.3]} 10... e5 {[%clk 0:02:40.9]} 11. dxe5
{[%clk 0:02:53.4]} 11... Nxe5 {[%clk 0:02:38.3]} 12. Nxe5 {[%clk 0:02:49.1]}
12... Bxe5 {[%clk 0:02:39.2]} 13. Bxh7+ {[%clk 0:02:48]} 13... Kxh7 {[%clk
0:02:40.1]} 14. Qh5+ {[%clk 0:02:47.4]} 14... Kg8 {[%clk 0:02:41]} 15. Qxe5
{[%clk 0:02:47.5]} 15... Re8 {[%clk 0:02:35.3]} 16. Qc3 {[%clk 0:02:44.4]} 16...
Bf5 {[%clk 0:02:18.8]} 17. Be3 {[%clk 0:02:39.4]} 17... Qd3 {[%clk 0:02:17.9]}
18. Rfc1 {[%clk 0:02:23.7]} 18... Qxc3 {[%clk 0:02:09.6]} 19. Rxc3 {[%clk
0:02:24.6]} 19... b6 {[%clk 0:02:02.9]} 20. h3 {[%clk 0:02:17.5]} 20... Rad8
{[%clk 0:02:01]} 21. a4 {[%clk 0:02:17.5]} 21... Rd3 {[%clk 0:01:41.1]} 22. Rac1
{[%clk 0:01:55.3]} 22... Red8 {[%clk 0:01:36.4]} 23. a5 {[%clk 0:01:47.8]} 23...
bxa5 {[%clk 0:01:31.8]} 24. Rxd3 {[%clk 0:00:54.3]} 24... Rxd3 {[%clk
0:01:21.8]} 25. Ra1 {[%clk 0:00:53.9]} 25... Rb3 {[%clk 0:01:14.2]} 26. Rxa5
{[%clk 0:00:45.6]} 26... Bd3 {[%clk 0:01:11.1]} 27. c5 {[%clk 0:00:39.6]} 27...
Rxb2 {[%clk 0:01:08.9]} 28. Rxa7 {[%clk 0:00:39.1]} 28... Be4 {[%clk 0:01:04.4]}
29. g4 {[%clk 0:00:34.5]} 29... Bd5 {[%clk 0:00:56.1]} 30. Kh2 {[%clk
0:00:34.2]} 30... Kh7 {[%clk 0:00:55.3]} 31. Kg3 {[%clk 0:00:34.6]} 31... Rb4
{[%clk 0:00:52.3]} 32. Rd7 {[%clk 0:00:29.3]} 32... Rb1 {[%clk 0:00:47]} 33. Kf4
{[%clk 0:00:20.9]} 33... Rh1 {[%clk 0:00:45]} 34. Kg3 {[%clk 0:00:19.6]} 34...
Rg1+ {[%clk 0:00:44.3]} 35. Kh4 {[%clk 0:00:15.7]} 35... Kg6 {[%clk 0:00:42]}
36. Rd6+ {[%clk 0:00:11.6]} 36... f6 {[%clk 0:00:40.5]} 37. g5 {[%clk 0:00:11]}
37... Kf7 {[%clk 0:00:26]} 38. gxf6 {[%clk 0:00:11]} 38... gxf6 {[%clk
0:00:26.6]} 39. Bd4 {[%clk 0:00:09.3]} 39... Rg6 {[%clk 0:00:19.6]} 40. f4
{[%clk 0:00:09.5]} 40... Bf3 {[%clk 0:00:18.1]} 41. f5 {[%clk 0:00:07.6]} 41...
Rh6+ {[%clk 0:00:16.4]} 42. Kg3 {[%clk 0:00:07.8]} 42... Bd5 {[%clk 0:00:15.7]}
43. h4 {[%clk 0:00:05.5]} 43... Ke7 {[%clk 0:00:14.5]} 44. Kg4 {[%clk
0:00:05.2]} 44... Kf7 {[%clk 0:00:13.6]} 45. h5 {[%clk 0:00:05.2]} 45... Ke7
{[%clk 0:00:13.2]} 46. Be3 {[%clk 0:00:03.9]} 46... Rh8 {[%clk 0:00:12]} 47. h6
{[%clk 0:00:04.3]} 47... Rg8+ {[%clk 0:00:10.8]} 48. Kh4 {[%clk 0:00:04.6]}
48... Rg2 {[%clk 0:00:09.6]} 49. Bd4 {[%clk 0:00:04.4]} 49... Rh2+ {[%clk
0:00:08.7]} 50. Kg3 {[%clk 0:00:03.5]} 50... Rxh6 {[%clk 0:00:09.1]} 51. Kg4
{[%clk 0:00:03.8]} 51... Kf7 {[%clk 0:00:07.8]} 52. Kf4 {[%clk 0:00:04.1]} 52...
Rh4+ {[%clk 0:00:06.4]} 53. Kg3 {[%clk 0:00:04.3]} 53... Rxd4 {[%clk 0:00:05.8]}
54. Kf2 {[%clk 0:00:03.3]} 54... Rc4 {[%clk 0:00:05.8]} 55. Ke3 {[%clk
0:00:04.2]} 55... Rxc5 {[%clk 0:00:06]} 56. Kd4 {[%clk 0:00:05.1]} 56... Ra5
{[%clk 0:00:06.2]} 57. Kd3 {[%clk 0:00:06]} 57... Ra4 {[%clk 0:00:05.5]} 58. Kc3
{[%clk 0:00:06.2]} 58... Rf4 {[%clk 0:00:05]} 59. Rd7+ {[%clk 0:00:06.5]} 59...
Ke8 {[%clk 0:00:04.3]} 60. Rc7 {[%clk 0:00:07.4]} 60... Rxf5 {[%clk 0:00:04.5]}
61. Kd4 {[%clk 0:00:08.3]} 61... Rf1 {[%clk 0:00:04.7]} 62. Kc5 {[%clk
0:00:09.2]} 62... f5 {[%clk 0:00:05]} 63. Kd6 {[%clk 0:00:10.1]} 63... f4 {[%clk
0:00:05.1]} 64. Re7+ {[%clk 0:00:11]} 64... Kf8 {[%clk 0:00:05]} 65. Rg7 {[%clk
0:00:11.8]} 65... Kxg7 {[%clk 0:00:03.6]} 0-1

[Event "*** SCC Grand Prix: Titled Tuesday Blitz"]
[Site "Chess.com"]
[Date "2020.09.08"]
[Round "10"]
[White "Nikithebest"]
[Black "GianmarcoVaR"]
[Result "0-1"]
[WhiteElo "2439"]
[BlackElo "2568"]
[TimeControl "180+1"]
[EndTime "11:57:56 PDT"]
[Termination "GianmarcoVaR won on time"]

1. e4 {[%clk 0:03:00.9]} 1... c5 {[%clk 0:02:59.9]} 2. Nf3 {[%clk 0:03:01.1]}
2... d6 {[%clk 0:03:00.4]} 3. Bb5+ {[%clk 0:03:01.2]} 3... Nc6 {[%clk
0:03:00.1]} 4. Bxc6+ {[%clk 0:03:01]} 4... bxc6 {[%clk 0:03:00.6]} 5. O-O {[%clk
0:03:01.7]} 5... e5 {[%clk 0:03:01.1]} 6. Re1 {[%clk 0:03:01.8]} 6... Be7 {[%clk
0:02:58]} 7. c3 {[%clk 0:03:02]} 7... f5 {[%clk 0:02:58.6]} 8. d4 {[%clk
0:02:58]} 8... fxe4 {[%clk 0:02:51.4]} 9. Rxe4 {[%clk 0:02:40.8]} 9... Nf6
{[%clk 0:02:51.6]} 10. Re1 {[%clk 0:02:39.7]} 10... cxd4 {[%clk 0:02:47.3]} 11.
cxd4 {[%clk 0:02:35.5]} 11... e4 {[%clk 0:02:47.8]} 12. Nfd2 {[%clk 0:02:27.8]}
12... d5 {[%clk 0:02:48.4]} 13. f3 {[%clk 0:02:28.4]} 13... O-O {[%clk
0:02:47.6]} 14. fxe4 {[%clk 0:02:28.7]} 14... Bg4 {[%clk 0:02:29.6]} 15. Qb3
{[%clk 0:02:28.7]} 15... Rb8 {[%clk 0:02:20.1]} 16. Qd3 {[%clk 0:02:13.1]} 16...
dxe4 {[%clk 0:02:16.5]} 17. Nxe4 {[%clk 0:02:12.7]} 17... Bf5 {[%clk 0:01:57.1]}
18. Nbc3 {[%clk 0:02:07.6]} 18... Bb4 {[%clk 0:01:57.3]} 19. Qc4+ {[%clk
0:02:00.8]} 19... Kh8 {[%clk 0:01:55.4]} 20. Nxf6 {[%clk 0:01:50.8]} 20... Qxf6
{[%clk 0:01:54.9]} 21. Bf4 {[%clk 0:01:51.4]} 21... Be6 {[%clk 0:01:51.4]} 22.
Qxe6 {[%clk 0:01:31.7]} 22... Qxf4 {[%clk 0:01:50.6]} 23. Qe3 {[%clk 0:01:07.6]}
23... Qh4 {[%clk 0:01:44.8]} 24. Rf1 {[%clk 0:01:02.3]} 24... Rfe8 {[%clk
0:01:36.6]} 25. Qf4 {[%clk 0:01:02.7]} 25... Qe7 {[%clk 0:01:28.6]} 26. Rad1
{[%clk 0:01:01.4]} 26... Bd6 {[%clk 0:01:24]} 27. Qf7 {[%clk 0:00:58.5]} 27...
Qh4 {[%clk 0:01:03.6]} 28. g3 {[%clk 0:00:58.9]} 28... Bxg3 {[%clk 0:01:03.3]}
29. hxg3 {[%clk 0:00:59.8]} 29... Qxg3+ {[%clk 0:01:03.8]} 30. Kh1 {[%clk
0:00:59.7]} 30... Qh3+ {[%clk 0:00:59.9]} 31. Kg1 {[%clk 0:00:59.6]} 31... Qg4+
{[%clk 0:00:57.8]} 32. Kh1 {[%clk 0:00:58.1]} 32... Qh4+ {[%clk 0:00:57.8]} 33.
Kg1 {[%clk 0:00:58]} 33... Qg5+ {[%clk 0:00:58.1]} 34. Kh1 {[%clk 0:00:58.1]}
34... Qh4+ {[%clk 0:00:55.1]} 35. Kg1 {[%clk 0:00:58.4]} 35... Qg3+ {[%clk
0:00:55.3]} 36. Kh1 {[%clk 0:00:58.6]} 36... h6 {[%clk 0:00:54.9]} 37. Qf2
{[%clk 0:00:54.9]} 37... Qh3+ {[%clk 0:00:51.2]} 38. Qh2 {[%clk 0:00:55.4]}
38... Qxh2+ {[%clk 0:00:49.6]} 39. Kxh2 {[%clk 0:00:53]} 39... Rxb2+ {[%clk
0:00:50.5]} 40. Kg3 {[%clk 0:00:53.2]} 40... Re6 {[%clk 0:00:29.5]} 41. Rf3
{[%clk 0:00:49.5]} 41... Rc2 {[%clk 0:00:27.6]} 42. Rdd3 {[%clk 0:00:46.6]}
42... a5 {[%clk 0:00:23]} 43. Rfe3 {[%clk 0:00:44.8]} 43... Rg6+ {[%clk
0:00:17.9]} 44. Kf4 {[%clk 0:00:45.5]} 44... a4 {[%clk 0:00:18.4]} 45. Nxa4
{[%clk 0:00:44.1]} 45... Rxa2 {[%clk 0:00:18.6]} 46. Nc5 {[%clk 0:00:44.5]}
46... Rf2+ {[%clk 0:00:18.2]} 47. Ke5 {[%clk 0:00:44.3]} 47... Rff6 {[%clk
0:00:12.3]} 48. Ra3 {[%clk 0:00:41.4]} 48... Rg5+ {[%clk 0:00:11.1]} 49. Ke4
{[%clk 0:00:41.8]} 49... Rd6 {[%clk 0:00:11.7]} 50. Ra8+ {[%clk 0:00:36.2]}
50... Kh7 {[%clk 0:00:11.6]} 51. Rf3 {[%clk 0:00:36.6]} 51... Rg4+ {[%clk
0:00:11.6]} 52. Rf4 {[%clk 0:00:36]} 52... Rxd4+ {[%clk 0:00:07.2]} 53. Kxd4
{[%clk 0:00:33.5]} 53... Rxf4+ {[%clk 0:00:08.1]} 54. Ke5 {[%clk 0:00:31]} 54...
Rg4 {[%clk 0:00:06.6]} 55. Ne6 {[%clk 0:00:23]} 55... h5 {[%clk 0:00:05.7]} 56.
Rc8 {[%clk 0:00:20.2]} 56... Kg6 {[%clk 0:00:03.2]} 57. Rxc6 {[%clk 0:00:20.1]}
57... Rg1 {[%clk 0:00:02.7]} 58. Nf4+ {[%clk 0:00:14.3]} 58... Kh7 {[%clk
0:00:03.2]} 59. Kf5 {[%clk 0:00:11.4]} 59... h4 {[%clk 0:00:02.2]} 60. Rc3
{[%clk 0:00:10.3]} 60... g6+ {[%clk 0:00:02.3]} 61. Kf6 {[%clk 0:00:08.8]} 61...
Kh6 {[%clk 0:00:02.8]} 62. Rh3 {[%clk 0:00:05.4]} 62... g5 {[%clk 0:00:02.8]}
63. Ne6 {[%clk 0:00:02.4]} 63... Rf1+ {[%clk 0:00:03.7]} 64. Ke5 {[%clk
0:00:02.3]} 64... Kh5 {[%clk 0:00:04.2]} 0-1

[Event "*** SCC Grand Prix: Titled Tuesday Blitz"]
[Site "Chess.com"]
[Date "2020.09.08"]
[Round "10"]
[White "LaPorfia"]
[Black "Caterpiller35"]
[Result "0-1"]
[WhiteElo "2281"]
[BlackElo "2457"]
[TimeControl "180+1"]
[EndTime "11:57:57 PDT"]
[Termination "Caterpiller35 won by resignation"]

1. d4 {[%clk 0:03:00.9]} 1... Nf6 {[%clk 0:01:01.9]} 2. Nf3 {[%clk 0:03:00.1]}
2... e6 {[%clk 0:01:01.8]} 3. Bf4 {[%clk 0:02:59.7]} 3... c5 {[%clk 0:01:01.5]}
4. e3 {[%clk 0:02:59.6]} 4... d5 {[%clk 0:01:01.8]} 5. Nbd2 {[%clk 0:02:59]}
5... Bd6 {[%clk 0:01:02.1]} 6. Bg3 {[%clk 0:02:58.8]} 6... Qc7 {[%clk
0:01:02.4]} 7. Ne5 {[%clk 0:02:54.7]} 7... Nbd7 {[%clk 0:01:01.5]} 8. f4 {[%clk
0:02:52.4]} 8... Ne4 {[%clk 0:00:57.4]} 9. Nxe4 {[%clk 0:02:47.1]} 9... dxe4
{[%clk 0:00:58.3]} 10. c3 {[%clk 0:02:44.9]} 10... cxd4 {[%clk 0:00:55.9]} 11.
exd4 {[%clk 0:02:37.1]} 11... O-O {[%clk 0:00:55.7]} 12. Be2 {[%clk 0:02:28.7]}
12... b6 {[%clk 0:00:55.4]} 13. O-O {[%clk 0:02:27.5]} 13... Bb7 {[%clk
0:00:55.7]} 14. Qd2 {[%clk 0:02:17.1]} 14... Rad8 {[%clk 0:00:53.3]} 15. Nxd7
{[%clk 0:02:16.3]} 15... Rxd7 {[%clk 0:00:51.6]} 16. Qe3 {[%clk 0:02:16.4]}
16... f5 {[%clk 0:00:47.8]} 17. Kh1 {[%clk 0:02:09.4]} 17... g5 {[%clk
0:00:43.6]} 18. Bd1 {[%clk 0:01:42.7]} 18... Rg7 {[%clk 0:00:42.1]} 19. Bb3
{[%clk 0:01:40.9]} 19... Bd5 {[%clk 0:00:41.5]} 20. Rac1 {[%clk 0:01:29.9]}
20... b5 {[%clk 0:00:41.3]} 21. Qd2 {[%clk 0:00:28.4]} 21... h5 {[%clk
0:00:34.6]} 22. Qe3 {[%clk 0:00:17]} 22... h4 {[%clk 0:00:31.6]} 23. Be1 {[%clk
0:00:17.2]} 23... Bxf4 {[%clk 0:00:30.8]} 24. Rxf4 {[%clk 0:00:17.8]} 24... Qxf4
{[%clk 0:00:29.2]} 25. Qxf4 {[%clk 0:00:15.8]} 25... gxf4 {[%clk 0:00:30.1]} 26.
Bxh4 {[%clk 0:00:16.2]} 26... e3 {[%clk 0:00:25.5]} 27. Bxd5 {[%clk 0:00:16.2]}
27... exd5 {[%clk 0:00:23.7]} 28. Re1 {[%clk 0:00:17]} 28... Re8 {[%clk
0:00:23.2]} 29. Bf6 {[%clk 0:00:15.1]} 29... Rb7 {[%clk 0:00:16.2]} 30. a3
{[%clk 0:00:13.9]} 30... a5 {[%clk 0:00:16]} 31. Be5 {[%clk 0:00:14.2]} 31... b4
{[%clk 0:00:13.2]} 32. axb4 {[%clk 0:00:12.8]} 32... axb4 {[%clk 0:00:13.4]} 33.
Bxf4 {[%clk 0:00:13.4]} 33... bxc3 {[%clk 0:00:12.8]} 34. bxc3 {[%clk
0:00:13.9]} 34... Re4 {[%clk 0:00:12.8]} 35. g3 {[%clk 0:00:13.2]} 35... e2
{[%clk 0:00:11.7]} 36. Kg2 {[%clk 0:00:12.8]} 36... Rb3 {[%clk 0:00:11.9]} 37.
Kf2 {[%clk 0:00:13.1]} 37... Rb2 {[%clk 0:00:11.2]} 38. h4 {[%clk 0:00:12.3]}
38... Kf7 {[%clk 0:00:11.2]} 39. h5 {[%clk 0:00:11.1]} 39... Kg7 {[%clk
0:00:11.3]} 40. h6+ {[%clk 0:00:11.3]} 40... Kg6 {[%clk 0:00:11.5]} 41. Kf3
{[%clk 0:00:10.1]} 41... Rc2 {[%clk 0:00:11.2]} 42. Kf2 {[%clk 0:00:09.5]} 42...
Kh7 {[%clk 0:00:11.5]} 43. Be5 {[%clk 0:00:06.4]} 43... Kxh6 {[%clk 0:00:09.5]}
44. Rh1+ {[%clk 0:00:06.5]} 44... Kg6 {[%clk 0:00:09]} 45. Re1 {[%clk
0:00:06.4]} 45... Kg5 {[%clk 0:00:08.5]} 46. Bf4+ {[%clk 0:00:05.6]} 46... Kg4
{[%clk 0:00:08]} 47. Be5 {[%clk 0:00:05.6]} 47... Rxc3 {[%clk 0:00:08.2]} 48.
Rh1 {[%clk 0:00:05.4]} 48... Rc2 {[%clk 0:00:05.9]} 49. Re1 {[%clk 0:00:05.5]}
49... f4 {[%clk 0:00:04.8]} 50. gxf4 {[%clk 0:00:05.3]} 50... Rxf4+ {[%clk
0:00:04.1]} 51. Bxf4 {[%clk 0:00:04.7]} 51... Kxf4 {[%clk 0:00:05]} 52. Rxe2
{[%clk 0:00:05.6]} 52... Rxe2+ {[%clk 0:00:05.7]} 53. Kxe2 {[%clk 0:00:06.5]}
53... Ke4 {[%clk 0:00:06.4]} 54. Ke1 {[%clk 0:00:05.8]} 54... Kxd4 {[%clk
0:00:05.3]} 55. Kd2 {[%clk 0:00:05.9]} 55... Kc4 {[%clk 0:00:05.6]} 56. Kc2
{[%clk 0:00:06.3]} 56... Kd4 {[%clk 0:00:06]} 57. Kd2 {[%clk 0:00:06.5]} 57...
Ke4 {[%clk 0:00:06.4]} 58. Ke2 {[%clk 0:00:06.9]} 58... d4 {[%clk 0:00:06]} 59.
Ke1 {[%clk 0:00:01.6]} 59... Ke3 {[%clk 0:00:06.1]} 60. Kd1 {[%clk 0:00:02]}
60... Kd3 {[%clk 0:00:06.4]} 0-1

[Event "*** SCC Grand Prix: Titled Tuesday Blitz"]
[Site "Chess.com"]
[Date "2020.09.08"]
[Round "10"]
[White "Grandelicious"]
[Black "azikom"]
[Result "1-0"]
[WhiteElo "2807"]
[BlackElo "2636"]
[TimeControl "180+1"]
[EndTime "11:57:58 PDT"]
[Termination "Grandelicious won by resignation"]

1. Nf3 {[%clk 0:03:00.9]} 1... c5 {[%clk 0:02:58.4]} 2. c4 {[%clk 0:02:59.4]}
2... g6 {[%clk 0:02:58.3]} 3. Nc3 {[%clk 0:02:59]} 3... Bg7 {[%clk 0:02:58.1]}
4. g3 {[%clk 0:02:58.8]} 4... Nc6 {[%clk 0:02:57.8]} 5. Bg2 {[%clk 0:02:59.4]}
5... Nh6 {[%clk 0:02:58.1]} 6. d4 {[%clk 0:02:58.5]} 6... cxd4 {[%clk
0:02:57.8]} 7. Bxh6 {[%clk 0:02:54.6]} 7... Bxh6 {[%clk 0:02:57.2]} 8. Nxd4
{[%clk 0:02:55.2]} 8... O-O {[%clk 0:02:57]} 9. O-O {[%clk 0:02:54.6]} 9... Nxd4
{[%clk 0:02:56]} 10. Qxd4 {[%clk 0:02:55.5]} 10... Bg7 {[%clk 0:02:56.6]} 11.
Qe3 {[%clk 0:02:54.1]} 11... d6 {[%clk 0:02:46.6]} 12. Rfd1 {[%clk 0:02:53.1]}
12... Bxc3 {[%clk 0:02:43.1]} 13. Qxc3 {[%clk 0:02:54]} 13... Qc7 {[%clk
0:02:42.5]} 14. Rac1 {[%clk 0:02:51.5]} 14... Be6 {[%clk 0:02:42.3]} 15. b3
{[%clk 0:02:45.4]} 15... Rac8 {[%clk 0:02:41.4]} 16. Qe3 {[%clk 0:02:44.5]}
16... b6 {[%clk 0:02:40.3]} 17. Bd5 {[%clk 0:02:15.3]} 17... Bxd5 {[%clk
0:02:35.5]} 18. Rxd5 {[%clk 0:02:16.2]} 18... Rfe8 {[%clk 0:02:31.5]} 19. Rcd1
{[%clk 0:02:13.5]} 19... Qd7 {[%clk 0:02:24.5]} 20. h4 {[%clk 0:02:08.4]} 20...
Qe6 {[%clk 0:02:23.5]} 21. Qf3 {[%clk 0:02:08.3]} 21... h5 {[%clk 0:02:20.4]}
22. R1d4 {[%clk 0:02:04.6]} 22... Rc5 {[%clk 0:02:01.6]} 23. a4 {[%clk
0:01:38.7]} 23... Rxd5 {[%clk 0:01:43.5]} 24. Rxd5 {[%clk 0:01:39.6]} 24... Rc8
{[%clk 0:01:35.8]} 25. Kg2 {[%clk 0:01:24.8]} 25... Kg7 {[%clk 0:01:33.6]} 26.
Rd4 {[%clk 0:01:13.8]} 26... Rc5 {[%clk 0:01:27.5]} 27. Qd3 {[%clk 0:01:00.4]}
27... Qf5 {[%clk 0:01:18.4]} 28. Qd2 {[%clk 0:00:52.6]} 28... Qf6 {[%clk
0:01:17.1]} 29. e3 {[%clk 0:00:50.5]} 29... Rf5 {[%clk 0:01:13.9]} 30. Rd5
{[%clk 0:00:34.6]} 30... Rxd5 {[%clk 0:00:39.8]} 31. cxd5 {[%clk 0:00:35.5]}
31... Qe5 {[%clk 0:00:30.9]} 32. Qd3 {[%clk 0:00:31.2]} 32... Qb2 {[%clk
0:00:30.3]} 33. Qc4 {[%clk 0:00:27.4]} 33... Qe5 {[%clk 0:00:27.9]} 34. Kf3
{[%clk 0:00:25]} 34... a5 {[%clk 0:00:26.9]} 35. Qb5 {[%clk 0:00:21.7]} 35...
Qf5+ {[%clk 0:00:26.2]} 36. Ke2 {[%clk 0:00:20.6]} 36... Qc2+ {[%clk 0:00:26]}
37. Kf1 {[%clk 0:00:21.2]} 37... Qd1+ {[%clk 0:00:20.6]} 38. Kg2 {[%clk
0:00:21.3]} 38... Kf6 {[%clk 0:00:19]} 39. Qc4 {[%clk 0:00:18.5]} 39... Kg7
{[%clk 0:00:19]} 40. Qc3+ {[%clk 0:00:17.7]} 40... Kg8 {[%clk 0:00:18.3]} 41.
Qc8+ {[%clk 0:00:17.8]} 41... Kg7 {[%clk 0:00:18.2]} 42. Qc4 {[%clk 0:00:18.5]}
42... Qd2 {[%clk 0:00:17.8]} 43. Qb5 {[%clk 0:00:16.2]} 43... Kf6 {[%clk
0:00:16.3]} 44. Qxb6 {[%clk 0:00:14.6]} 44... Qxd5+ {[%clk 0:00:15.9]} 45. Kg1
{[%clk 0:00:14.4]} 45... e5 {[%clk 0:00:12.7]} 46. b4 {[%clk 0:00:12.4]} 46...
axb4 {[%clk 0:00:12.1]} 47. Qxb4 {[%clk 0:00:13.3]} 47... Qd1+ {[%clk
0:00:11.8]} 48. Kg2 {[%clk 0:00:13.6]} 48... Qd5+ {[%clk 0:00:11.5]} 49. e4
{[%clk 0:00:14.1]} 49... Qd3 {[%clk 0:00:11.4]} 50. a5 {[%clk 0:00:12.9]} 50...
Ke6 {[%clk 0:00:10.6]} 51. Qb7 {[%clk 0:00:12]} 51... f5 {[%clk 0:00:09.3]} 52.
a6 {[%clk 0:00:09.7]} 52... fxe4 {[%clk 0:00:09.3]} 53. Qc8+ {[%clk 0:00:08.9]}
53... Kf6 {[%clk 0:00:08.9]} 54. Qf8+ {[%clk 0:00:08.5]} 54... Ke6 {[%clk
0:00:08.8]} 55. a7 {[%clk 0:00:08.2]} 55... e3 {[%clk 0:00:08.3]} 56. a8=Q
{[%clk 0:00:08]} 56... e2 {[%clk 0:00:08]} 57. Qae8+ {[%clk 0:00:06.5]} 57...
Kd5 {[%clk 0:00:07.7]} 58. Qa8+ {[%clk 0:00:06.6]} 58... Kd4 {[%clk 0:00:07.6]}
59. Qxd6+ {[%clk 0:00:06.4]} 59... Kc3 {[%clk 0:00:07.9]} 60. Qxd3+ {[%clk
0:00:07.3]} 60... Kxd3 {[%clk 0:00:07.8]} 61. Qa5 {[%clk 0:00:07.8]} 61... Kc2
{[%clk 0:00:07.6]} 62. Qe1 {[%clk 0:00:08.7]} 62... Kd3 {[%clk 0:00:07.7]} 63.
Kf3 {[%clk 0:00:09.6]} 63... e4+ {[%clk 0:00:08.2]} 64. Kf4 {[%clk 0:00:10.5]}
64... e3 {[%clk 0:00:08.5]} 65. fxe3 {[%clk 0:00:11.4]} 1-0

[Event "*** SCC Grand Prix: Titled Tuesday Blitz"]
[Site "Chess.com"]
[Date "2020.09.08"]
[Round "10"]
[White "Tooweak2slow03"]
[Black "Vsevolod_Ovchinnikov"]
[Result "1-0"]
[WhiteElo "2775"]
[BlackElo "2563"]
[TimeControl "180+1"]
[EndTime "11:57:58 PDT"]
[Termination "Tooweak2slow03 won by checkmate"]

1. e4 {[%clk 0:03:00.9]} 1... g6 {[%clk 0:02:59.6]} 2. d4 {[%clk 0:03:00.6]}
2... Bg7 {[%clk 0:02:59.9]} 3. Nc3 {[%clk 0:03:00]} 3... a6 {[%clk 0:03:00.4]}
4. a4 {[%clk 0:02:59.1]} 4... d6 {[%clk 0:03:00.1]} 5. g3 {[%clk 0:02:59.1]}
5... Nf6 {[%clk 0:02:58.8]} 6. Bg2 {[%clk 0:02:59.3]} 6... O-O {[%clk
0:02:59.2]} 7. Nge2 {[%clk 0:02:59.4]} 7... Nbd7 {[%clk 0:02:59.8]} 8. O-O
{[%clk 0:02:59.4]} 8... Rb8 {[%clk 0:03:00.2]} 9. h3 {[%clk 0:02:58.4]} 9... b5
{[%clk 0:02:55.7]} 10. axb5 {[%clk 0:02:58.8]} 10... axb5 {[%clk 0:02:56.6]} 11.
Be3 {[%clk 0:02:54.6]} 11... b4 {[%clk 0:02:54.5]} 12. Nb1 {[%clk 0:02:53.7]}
12... Bb7 {[%clk 0:02:36.8]} 13. Nd2 {[%clk 0:02:51]} 13... c5 {[%clk
0:02:36.7]} 14. c3 {[%clk 0:02:49.8]} 14... bxc3 {[%clk 0:02:36.2]} 15. bxc3
{[%clk 0:02:50.7]} 15... Qc7 {[%clk 0:02:32.4]} 16. Kh2 {[%clk 0:02:46]} 16...
Ra8 {[%clk 0:02:28.7]} 17. Rb1 {[%clk 0:02:37.2]} 17... Ra7 {[%clk 0:02:08.6]}
18. f4 {[%clk 0:02:24.5]} 18... Rfa8 {[%clk 0:01:04.3]} 19. Rxb7 {[%clk
0:02:23.4]} 19... Rxb7 {[%clk 0:00:25.4]} 20. e5 {[%clk 0:02:23.4]} 20... Ne8
{[%clk 0:00:24.4]} 21. dxc5 {[%clk 0:01:30.2]} 21... dxc5 {[%clk 0:00:17.1]} 22.
Nc4 {[%clk 0:01:28]} 22... Ra2 {[%clk 0:00:14.1]} 23. Nc1 {[%clk 0:01:21.7]}
23... Rxg2+ {[%clk 0:00:12.6]} 24. Kxg2 {[%clk 0:01:19.8]} 24... Qc6+ {[%clk
0:00:13]} 25. Kh2 {[%clk 0:01:16]} 25... Nc7 {[%clk 0:00:12.5]} 26. Nb3 {[%clk
0:01:12.4]} 26... Qd5 {[%clk 0:00:07.2]} 27. Nca5 {[%clk 0:01:07.9]} 27... Rb8
{[%clk 0:00:03.9]} 28. Qc2 {[%clk 0:01:00.3]} 28... Qa8 {[%clk 0:00:02.7]} 29.
Rd1 {[%clk 0:00:56.7]} 29... Nd5 {[%clk 0:00:02.9]} 30. Bf2 {[%clk 0:00:53.2]}
30... e6 {[%clk 0:00:03.3]} 31. c4 {[%clk 0:00:50.9]} 31... Nb4 {[%clk
0:00:03.6]} 32. Qe2 {[%clk 0:00:47.3]} 32... Nb6 {[%clk 0:00:03.4]} 33. Bxc5
{[%clk 0:00:45.7]} 33... Na4 {[%clk 0:00:03.8]} 34. Bxb4 {[%clk 0:00:43.4]}
34... Rxb4 {[%clk 0:00:04.7]} 35. Qg2 {[%clk 0:00:43.9]} 35... Qe8 {[%clk
0:00:03.2]} 36. c5 {[%clk 0:00:41.6]} 36... Bf8 {[%clk 0:00:02.3]} 37. c6 {[%clk
0:00:36.9]} 37... Rb8 {[%clk 0:00:02]} 38. c7 {[%clk 0:00:34.5]} 38... Rc8
{[%clk 0:00:02.5]} 39. Qb7 {[%clk 0:00:33]} 39... Nc3 {[%clk 0:00:02.8]} 40. Rc1
{[%clk 0:00:29.1]} 40... Nd5 {[%clk 0:00:03.3]} 41. Nd4 {[%clk 0:00:22.6]} 41...
Rxc7 {[%clk 0:00:02.7]} 42. Rxc7 {[%clk 0:00:21]} 42... Nxc7 {[%clk 0:00:03.6]}
43. Qxc7 {[%clk 0:00:21.9]} 43... Qa4 {[%clk 0:00:03.8]} 44. Nab3 {[%clk
0:00:18.9]} 44... Qa2+ {[%clk 0:00:03.7]} 45. Qc2 {[%clk 0:00:18.8]} 45... Qa8
{[%clk 0:00:03.8]} 46. Qg2 {[%clk 0:00:16.4]} 46... Qa4 {[%clk 0:00:03.4]} 47.
Qf2 {[%clk 0:00:14.1]} 47... Qc4 {[%clk 0:00:03.4]} 48. Nd2 {[%clk 0:00:13.8]}
48... Qd3 {[%clk 0:00:03.5]} 49. N4f3 {[%clk 0:00:12.4]} 49... h6 {[%clk
0:00:03.2]} 50. Qg2 {[%clk 0:00:11]} 50... Qe3 {[%clk 0:00:02.9]} 51. Nf1 {[%clk
0:00:10.6]} 51... Qd3 {[%clk 0:00:03]} 52. Qf2 {[%clk 0:00:10.3]} 52... Qc3
{[%clk 0:00:02.7]} 53. Kg1 {[%clk 0:00:10.6]} 53... Qd3 {[%clk 0:00:03]} 54. Kg2
{[%clk 0:00:10.5]} 54... Qc4 {[%clk 0:00:03.3]} 55. Ne3 {[%clk 0:00:10.8]} 55...
Qd3 {[%clk 0:00:03.6]} 56. Nf1 {[%clk 0:00:11.1]} 56... Qc3 {[%clk 0:00:03.4]}
57. N1d2 {[%clk 0:00:11.1]} 57... Bc5 {[%clk 0:00:03.5]} 58. Qe2 {[%clk
0:00:11.2]} 58... Bf8 {[%clk 0:00:02.9]} 59. Ne4 {[%clk 0:00:11.5]} 59... Qc8
{[%clk 0:00:03]} 60. Nf6+ {[%clk 0:00:12]} 60... Kh8 {[%clk 0:00:03.6]} 61. Qd2
{[%clk 0:00:11.8]} 61... Qb8 {[%clk 0:00:03.9]} 62. Nd7 {[%clk 0:00:11.2]} 62...
Qd8 {[%clk 0:00:04.2]} 63. Qd4 {[%clk 0:00:10]} 63... Bg7 {[%clk 0:00:03.8]} 64.
Nf6 {[%clk 0:00:09.9]} 64... Qa8 {[%clk 0:00:03.4]} 65. Qd7 {[%clk 0:00:09.5]}
65... Qa2+ {[%clk 0:00:03.4]} 66. Kh1 {[%clk 0:00:09.4]} 66... Qb1+ {[%clk
0:00:03.5]} 67. Ng1 {[%clk 0:00:09.5]} 67... Qc2 {[%clk 0:00:02.8]} 68. Qe8+
{[%clk 0:00:09.3]} 68... Bf8 {[%clk 0:00:02.3]} 69. Qxf8# {[%clk 0:00:09.6]} 1-0